Workbook

Sheet Bilans
A1: jour | B1: dâte du jour | C1: heure | D1: evènement | E1: pAS Systolique | F1: pAD Diastolique | G1: pulsations Minutes | H1: calcul moyenne de la pression artérielle mm hg | I1: tension
A2: =DAY(B2) -> 25 | B2: 2022-01-25 | C2: 07:48:53 | D2: Petit dejeuner | E2: 120 | F2: 79 | G2: 72 | H2: =IFERROR(IF(E2="","",SUM(2*(F2)+E2))/3,"") -> 92.66666667
A3: =IF(D3="","",IF(B3=B2,A2,A2+1)) -> 26 | B3: 2022-01-26 | C3: 08:48:53 | D3: Petit dejeuner | E3: 142 | F3: 91 | G3: 86 | H3: =IFERROR(IF(E3="","",SUM(2*(F3)+E3))/3,"") -> 108
A4: =IF(D4="","",IF(B4=B3,A3,A3+1)) -> 27 | B4: 2022-01-27 | C4: 07:39:09 | D4: Petit dejeuner | E4: 121 | F4: 67 | G4: 88 | H4: 85
A5: 28 | B5: 2022-01-28 | C5: 08:15:29 | D5: Petit dejeuner | E5: 129 | F5: 80 | G5: 87 | H5: 96.33333333
A6: 29 | B6: 2022-01-29 | C6: 07:29:34 | D6: Petit dejeuner | E6: 137 | F6: 79 | G6: 76 | H6: 98.33333333
A7: 30 | B7: 2022-01-30 | C7: 08:09:13 | D7: Petit dejeuner | E7: 135 | F7: 77 | G7: 88 | H7: 96.33333333
A8: 31 | B8: 2022-01-31 | C8: 07:46:46 | D8: Petit dejeuner | E8: 109 | F8: 66 | G8: 84 | H8: 80.33333333
A9: 1 | B9: 2022-02-01 | C9: 08:26:29 | D9: Petit dejeuner | E9: 127 | F9: 86 | G9: 85 | H9: 99.66666667
A10: 2 | B10: 2022-02-02 | C10: 08:03:05 | D10: Petit dejeuner | E10: 118 | F10: 73 | G10: 91 | H10: 88
A11: 3 | B11: 2022-02-03 | C11: 08:24:49 | D11: Petit dejeuner | E11: 122 | F11: 76 | G11: 78 | H11: 91.33333333
A12: 4 | B12: 2022-02-04 | C12: 08:00:01 | D12: Petit dejeuner | E12: 131 | F12: 81 | G12: 83 | H12: 97.66666667
A13: 5 | B13: 2022-02-05 | C13: 09:07:54 | D13: Petit dejeuner | E13: 118 | F13: 76 | G13: 86 | H13: 90
A14: 6 | B14: 2022-02-06 | C14: 08:16:57 | D14: Petit dejeuner | E14: 131 | F14: 71 | G14: 90 | H14: 91
A15: 7 | B15: 2022-02-07 | C15: 07:57:48 | D15: Petit dejeuner | E15: 122 | F15: 74 | G15: 86 | H15: 90
A16: 8 | B16: 2022-02-08 | C16: 07:59:47 | D16: Petit dejeuner | E16: 130 | F16: 69 | G16: 88 | H16: 89.33333333
A17: 9 | B17: 2022-02-09 | C17: 08:20:29 | D17: Petit dejeuner | E17: 129 | F17: 80 | G17: 90 | H17: 96.33333333
A18: 10 | B18: 2022-02-10 | C18: 08:59:16 | D18: Petit dejeuner | E18: 150 | F18: 84 | G18: 94 | H18: 106
A19: 11 | B19: 2022-02-11 | C19: 08:14:12 | D19: Petit dejeuner | E19: 116 | F19: 81 | G19: 94 | H19: 92.66666667
A20: 12 | B20: 2022-02-12 | C20: 08:44:30 | D20: Petit dejeuner | E20: 135 | F20: 81 | G20: 87 | H20: 99
A21: 13 | B21: 2022-02-13 | C21: 08:26:53 | D21: Petit dejeuner | E21: 156 | F21: 79 | G21: 92 | H21: 104.6666667
A22: 14 | B22: 2022-02-14 | C22: 12:33:10 | D22: Déjeuner | E22: 114 | F22: 70 | G22: 88 | H22: 84.66666667
A23: 15 | B23: 2022-02-15 | C23: 07:59:20 | D23: Petit dejeuner | E23: 124 | F23: 76 | G23: 89 | H23: 92
A24: 16 | B24: 2022-02-16 | C24: 10:57:55 | D24: Déjeuner | E24: 129 | F24: 89 | G24: 99 | H24: 102.3333333
A25: 17 | B25: 2022-02-18 | C25: 08:50:56 | D25: Petit dejeuner | E25: 145 | F25: 91 | G25: 91 | H25: 109
A26: 18 | B26: 2022-02-19 | C26: 08:42:47 | D26: Petit dejeuner | E26: 129 | F26: 93 | G26: 81 | H26: 105
A27: 19 | B27: 2022-02-20 | C27: 10:21:56 | D27: Petit dejeuner | E27: 127 | F27: 78 | G27: 75 | H27: 94.33333333
A28: 20 | B28: 2022-02-21 | C28: 08:16:14 | D28: Petit dejeuner | E28: 131 | F28: 79 | G28: 93 | H28: 96.33333333
A29: 21 | B29: 2022-02-22 | C29: 12:25:15 | D29: Déjeuner | E29: 121 | F29: 83 | G29: 89 | H29: 95.66666667
A30: 22 | B30: 2022-02-23 | C30: 08:49:26 | D30: Petit dejeuner | E30: 134 | F30: 101 | G30: 85 | H30: 112
A31: 23 | B31: 2022-02-24 | C31: 09:04:36 | D31: Petit dejeuner | E31: 145 | F31: 89 | G31: 86 | H31: 107.6666667
A32: 24 | B32: 2022-02-25 | C32: 08:12:02 | D32: Petit dejeuner | E32: 135 | F32: 88 | G32: 86 | H32: 103.6666667
A33: =IF(D33="","",IF(B33=B32,A32,A32+1)) -> 25 | B33: 2022-02-26 | C33: 12:20:28 | D33: Déjeuner | E33: 137 | F33: 95 | G33: 90 | H33: =IFERROR(IF(E33="","",SUM(2*(F33)+E33))/3,"") -> 109
A34: 26 | B34: 2022-02-27 | C34: 08:29:04 | D34: Petit déjeuner | E34: 133 | F34: 91 | G34: 88 | H34: 105
A35: 27 | B35: 2022-02-28 | C35: 08:35:26 | D35: Petit déjeuner | E35: 121 | F35: 80 | G35: 92 | H35: 93.66666667
A36: 28 | B36: 2022-03-01 | C36: 17:04:59 | D36: Déjeuner | E36: 124 | F36: 81 | G36: 86 | H36: 95.33333333
A37: 29 | B37: 2022-03-02 | C37: 10:49:46 | D37: Déjeuner | E37: 125 | F37: 76 | G37: 88 | H37: 92.33333333
A38: 30 | B38: 2022-03-03 | C38: 08:12:26 | D38: Petit déjeuner | E38: 140 | F38: 67 | G38: 79 | H38: 91.33333333
A39: 31 | B39: 2022-03-04 | C39: 16:00:44 | D39: Déjeuner | E39: 134 | F39: 79 | G39: 94 | H39: 97.33333333
A40: 32 | B40: 2022-03-05 | C40: 08:42:31 | D40: Petit déjeuner | E40: 139 | F40: 89 | G40: 85 | H40: 105.6666667
A41: 33 | B41: 2022-03-06 | C41: 08:18:57 | D41: Petit déjeuner | E41: 145 | F41: 77 | G41: 89 | H41: 99.66666667
A42: 34 | B42: 2022-03-07 | C42: 08:02:36 | D42: Petit déjeuner | E42: 138 | F42: 92 | G42: 84 | H42: 107.3333333
A43: 35 | B43: 2022-03-08 | C43: 08:19:07 | D43: Petit déjeuner | E43: 133 | F43: 82 | G43: 92 | H43: 99
A44: 36 | B44: 2022-03-09 | C44: 08:55:57 | D44: Petit déjeuner | E44: 156 | F44: 95 | G44: 93 | H44: 115.3333333
A45: 37 | B45: 2022-03-10 | C45: 09:14:28 | D45: Petit déjeuner | E45: 146 | F45: 95 | G45: 75 | H45: 112
A46: 38 | B46: 2022-03-11 | C46: 08:43:19 | D46: Petit déjeuner | E46: 156 | F46: 76 | G46: 92 | H46: 102.6666667
A47: 39 | B47: 2022-03-15 | C47: 15:05:23 | D47: Déjeuner | E47: 125 | F47: 81 | G47: 92 | H47: 95.66666667
A48: 40 | B48: 2022-03-16 | C48: 08:05:37 | D48: Petit déjeuner | E48: 152 | F48: 94 | G48: 92 | H48: 113.3333333
A49: 41 | B49: 2022-03-17 | C49: 08:15:48 | D49: Petit déjeuner | E49: 138 | F49: 82 | G49: 90 | H49: 100.6666667
A50: 42 | B50: 2022-03-18 | C50: 07:56:54 | D50: Petit déjeuner | E50: 144 | F50: 94 | G50: 90 | H50: 110.6666667
A51: 43 | B51: 2022-03-19 | C51: 17:43:31 | D51: Soirée | E51: 127 | F51: 78 | G51: 97 | H51: 94.33333333
A97: =IF(D97="","",IF(B97=B96,A96,A96+1)) ->  | H97: =IFERROR(IF(E97="","",SUM(2*(F97)+E97))/3,"") -> 

Sheet Mesures
A1: Jour 1 | B1: MATIN | F1: SOIR | I1: Jour 1
B2: Mesure 1 | C2: Mesure 2 | D2: Mesure 3 | F2: Mesure 1 | G2: Mesure 2 | H2: Mesure 3
A3: Systolique | B3: 120 | C3: 125 | D3: 123 | E3: 100 | F3: 137 | G3: 140 | H3: 138 | I3: Systolique
A4: Diastolique | B4: 79 | C4: 80 | D4: 80 | F4: 79 | G4: 90 | H4: 82 | I4: Diastolique
A5: Pouls | B5: 72 | C5: 75 | D5: 74 | F5: 76 | G5: 81 | H5: 78 | I5: Pouls
D6: 79
A7: Jour 2 | B7: MATIN | F7: SOIR | I7: Jour 2
B8: Mesure 1 | C8: Mesure 2 | D8: Mesure 3 | F8: Mesure 1 | G8: Mesure 2 | H8: Mesure 3
A9: Systolique | B9: 130 | C9: 135 | D9: 133 | F9: 140 | G9: 145 | H9: 142 | I9: Systolique
A10: Diastolique | B10: 90 | C10: 95 | D10: 92 | F10: 100 | G10: 102 | H10: 100 | I10: Diastolique
A11: Pouls | B11: 95 | C11: 100 | D11: 95 | F11: 100 | G11: 110 | H11: 105 | I11: Pouls
A13: Jour 3 | B13: MATIN | F13: SOIR | I13: Jour 3
B14: Mesure 1 | C14: Mesure 2 | D14: Mesure 3 | F14: Mesure 1 | G14: Mesure 2 | H14: Mesure 3
A15: Systolique | B15: 120 | C15: 125 | D15: 123 | E15: 100 | F15: 137 | G15: 140 | H15: 138 | I15: Systolique
A16: Diastolique | B16: 79 | C16: 80 | D16: 80 | F16: 79 | G16: 90 | H16: 82 | I16: Diastolique
A17: Pouls | B17: 72 | C17: 75 | D17: 74 | F17: 76 | G17: 81 | H17: 78 | I17: Pouls
A18: Total: | B18: =SUM(B3:B5,B9:B11,B15:B17) -> 857 | C18: =SUM(C3:C5,C9:C11,C15:C17) -> 890 | F18: =SUM(F3:F5,F9:F11,G15:G17) -> 943 | G18: =SUM(G3:G5,G9:G11,G15:G17) -> 979 | I18: Total:
A19: Résultat: | B19: =SUM(B18/18) -> 47.61111111 | C19: =SUM(C18/18) -> 49.44444444 | F19: =SUM(F18/18) -> 52.38888889 | G19: =SUM(G18/18) -> 54.38888889 | I19: Résultat:
A21: Jour 1 | B21: MATIN | F21: SOIR | I21: Jour 1
B22: Mesure 1: | C22: Mesure 2: | D22: Mesure 3: | F22: Mesure 1: | G22: Mesure 2: | H22: Mesure 3:
A23: Systolique | B23: 120 | C23: 125 | D23: 123 | E23: 100 | F23: 137 | G23: 140 | H23: 138 | I23: Systolique
A24: Diastolique | B24: 79 | C24: 80 | D24: 80 | F24: 79 | G24: 90 | H24: 82 | I24: Diastolique
A25: Pouls | B25: 72 | C25: 75 | D25: 74 | F25: 76 | G25: 81 | H25: 78 | I25: Pouls
D26: 79
A27: Jour 2 | B27: MATIN | F27: SOIR | I27: Jour 2
B28: Mesure 1: | C28: Mesure 2: | D28: Mesure 3: | F28: Mesure 1: | G28: Mesure 2: | H28: Mesure 3:
A29: Systolique | B29: 130 | C29: 135 | D29: 133 | F29: 140 | G29: 145 | H29: 142 | I29: Systolique
A30: Diastolique | B30: 90 | C30: 95 | D30: 92 | F30: 100 | G30: 102 | H30: 100 | I30: Diastolique
A31: Pouls | B31: 95 | C31: 100 | D31: 95 | F31: 100 | G31: 110 | H31: 105 | I31: Pouls
A33: Jour 3 | B33: MATIN | F33: SOIR | I33: Jour 3
B34: Mesure 1: | C34: Mesure 2: | D34: Mesure 3: | F34: Mesure 1: | G34: Mesure 2: | H34: Mesure 3:
A35: Systolique | B35: 120 | C35: 125 | D35: 123 | E35: 100 | F35: 137 | G35: 140 | H35: 138 | I35: Systolique
A36: Diastolique | B36: 79 | C36: 80 | D36: 80 | F36: 79 | G36: 90 | H36: 82 | I36: Diastolique
A37: Pouls | B37: 72 | C37: 75 | D37: 74 | F37: 76 | G37: 81 | H37: 78 | I37: Pouls
A38: Total: | B38: =SUM(B23:B25,B29:B31,B35:B37) -> 857 | C38: =SUM(C23:C25,C29:C31,C35:C37) -> 890 | F38: =SUM(F23:F25,F29:F31,G35:G37) -> 943 | G38: =SUM(G23:G25,G29:G31,G35:G37) -> 979 | I38: Total:
A39: Résultat: | B39: =SUM(B38/18) -> 47.61111111 | C39: =SUM(C38/18) -> 49.44444444 | F39: =SUM(F38/18) -> 52.38888889 | G39: =SUM(G38/18) -> 54.38888889 | I39: Résultat:
